bitfinex-derivatives/quotes_SOLF0:USTF0_20260123
["timestamp","ask_amount","ask_price","bid_price","bid_amount"]
[1769128016633,5.85253474,128.24,128.19,0.05911368]
[1769128020038,3.984498,128.24,128.19,0.05911368]
[1769128023441,3.984498,128.24,128.19,4.71569629]
[1769128023645,3.99488365,128.25,128.2,4.65658261]
[1769128023831,5.86292039,128.25,128.2,4.65658261]
[1769128024938,5.86292039,128.25,128.21,0.05536021]
[1769128025130,4.06010025,128.24,128.21,0.05536021]
[1769128028947,5.93066158,128.24,128.21,0.05536021]
[1769128034043,4.06010025,128.24,128.21,0.05536021]
[1769128044856,4.01195495,128.26,128.21,0.05536021]
[1769128050558,0.05502813,128.25,128.21,0.05536021]
[1769128050765,4.06951403,128.25,128.21,0.05536021]
[1769128052869,0.05502813,128.25,128.21,5.15929211]
[1769128053066,4.01175787,128.27,128.23,5.1039319]
[1769128054259,4.01214445,128.29,128.24,0.05358066]
[1769128057165,4.01214445,128.29,128.24,5.15751256]
[1769128057367,4.01214445,128.29,128.24,7.02807389]
[1769128058064,1.87056133,128.32,128.25,5.17316024]
[1769128058270,8.89106133,128.33,128.26,5.17316024]
[1769128058661,0.05775303,128.3,128.28,0.05114962]
[1769128059969,0.05775303,128.3,128.25,7.04372157]
[1769128060166,0.05775303,128.3,128.25,5.17316024]
[1769128061068,0.05775303,128.3,128.26,0.05547161]
[1769128065756,0.11313935,128.3,128.26,0.05547161]
[1769128065970,0.05538632,128.29,128.26,0.05547161]
[1769128073577,0.05538632,128.29,128.22,14.06952157]
[1769128073578,0.25215887,128.28,128.22,14.06952157]
[1769128074376,0.25215887,128.28,128.23,5.17316024]
[1769128074978,0.25215887,128.28,128.24,0.05464025]
[1769128081681,7.46921879,128.3,128.24,5.37962553]
[1769128082385,0.46804478,128.29,128.24,5.37962553]
[1769128085788,0.55397179,128.28,128.24,0.05464025]
[1769128093393,0.04936974,128.27,128.24,0.05464025]
[1769128093693,0.04936974,128.27,128.24,5.40418448]
[1769128093896,1.86886592,128.29,128.24,5.40418448]
[1769128094083,2.59352664,128.29,128.24,5.40418448]
[1769128095179,0.05434979,128.28,128.24,5.40418448]
[1769128101895,0.90002748,128.28,128.24,0.05464025]
[1769128103101,0.05434979,128.28,128.24,5.40418448]
[1769128107102,0.8784942,128.3,128.24,5.40418448]
[1769128115808,2.94060657,128.31,128.24,5.40418448]
[1769128125618,1.86886592,128.31,128.25,5.40701054]
[1769128125923,3.07239325,128.33,128.25,5.40701054]
[1769128126312,3.07239325,128.33,128.27,5.46600363]
[1769128132616,1.86886592,128.32,128.27,5.46600363]
[1769128132822,1.86886592,128.31,128.27,5.46600363]
[1769128135520,3.18980183,128.31,128.27,0.05899309]
[1769128135719,1.86886592,128.3,128.27,0.05899309]
[1769128135924,1.86886592,128.3,128.25,5.40701054]
[1769128136523,1.86886592,128.29,128.25,5.40701054]
[1769128137023,1.86886592,128.29,128.26,0.05479552]
[1769128138320,1.86886592,128.3,128.26,0.05479552]
[1769128150943,3.36042542,128.3,128.26,0.05479552]
[1769128157349,1.491937,128.3,128.26,0.05479552]
[1769128163550,3.36042542,128.3,128.26,0.05479552]
[1769128176359,2.31984585,128.29,128.23,5.64644066]
[1769128177662,2.31984585,128.29,128.25,0.05664761]
[1769128189266,4.18833427,128.29,128.25,0.05664761]
[1769128189569,2.39717787,128.28,128.25,0.05664761]
[1769128191071,2.39717787,128.28,128.22,5.64644066]
[1769128191670,2.39717787,128.28,128.21,211.68927902]
[1769128191869,2.35723889,128.26,128.21,211.68927902]
[1769128192170,2.35723889,128.26,128.21,217.33571968]
[1769128192370,1.86848842,128.27,128.22,5.64644066]
[1769128194275,1.86848842,128.27,128.23,0.05592575]
[1769128199175,4.23118268,128.28,128.23,0.05592575]
[1769128199479,2.39916703,128.27,128.23,0.05592575]
[1769128200287,109.2151,128.32,128.23,0.05592575]
[1769128200288,4.27262922,128.26,128.23,0.05592575]
[1769128200476,4.27262922,128.26,128.21,204.66267902]
[1769128200777,4.27262922,128.25,128.21,204.66267902]
[1769128201174,2.4041408,128.25,128.21,204.66267902]
[1769128201781,2.4041408,128.25,128.22,0.05430722]
[1769128206184,2.4041408,128.25,128.21,204.66267902]
[1769128206692,2.4041408,128.25,128.19,7.94670544]
[1769128207487,0.05630188,128.23,128.19,7.94670544]
[1769128208391,1.82235907,128.27,128.21,6.07821702]
[1769128209290,1.88282698,128.26,128.21,6.07821702]
[1769128209589,0.05724098,128.25,128.21,6.07821702]
[1769128210081,1.94418614,128.25,128.21,6.07821702]
[1769128212584,1.94418614,128.25,128.2,1.86968164]
[1769128212881,1.94418614,128.25,128.19,7.94789866]
[1769128213389,1.94418614,128.25,128.21,0.05218589]
[1769128215186,1.94418614,128.25,128.18,1.35667225]
[1769128215187,1.85377985,128.23,128.18,1.35667225]
[1769128215401,1.85377985,128.21,128.15,6.07821702]
[1769128216091,1.85719395,128.19,128.13,6.07821702]
[1769128216599,0.05668706,128.17,128.13,6.07821702]
[1769128216895,0.05668706,128.17,128.15,0.05422577]
[1769128217595,1.85719395,128.19,128.15,0.05422577]
[1769128217894,1.86056884,128.21,128.15,6.13244279]
[1769128218279,1.86056884,128.21,128.15,6.07821702]
[1769128218889,0.05605433,128.19,128.15,6.07821702]
[1769128219394,294.86,128.29,128.15,6.07821702]
[1769128219395,1.9232571,128.25,128.19,6.07821702]
[1769128219591,1.9232571,128.24,128.18,1.86968164]
[1769128219892,1.9232571,128.24,128.17,6.07821702]
[1769128220500,1.9232571,128.24,128.19,0.05534899]
[1769128221493,3.79293874,128.24,128.19,0.05534899]
[1769128221693,1.92988304,128.23,128.19,0.05534899]
[1769128222796,0.05184322,128.22,128.19,0.05534899]
[1769128223893,0.05184322,128.22,128.19,1.92503063]
[1769128224092,1.93649955,128.25,128.19,1.92503063]
[1769128225792,1.93649955,128.25,128.2,7.94789866]
[1769128227698,1.93649955,128.25,128.2,6.07821702]
[1769128235309,3.80618119,128.25,128.19,0.05534899]
[1769128235515,1.86968164,128.23,128.19,0.05534899]
[1769128235812,3.86432823,128.24,128.18,5.61333715]
[1769128236208,3.86432823,128.24,128.2,0.05584864]
[1769128239922,2.00954835,128.23,128.2,0.05584864]
[1769128240412,3.82700043,128.22,128.16,5.61333715]
[1769128240617,1.95731879,128.21,128.16,5.61333715]
[1769128241721,1.95731879,128.21,128.17,0.05950465]
[1769128248128,3.82700043,128.21,128.17,0.05950465]
[1769128248924,1.95731879,128.21,128.17,0.05950465]
[1769128251235,0.05404761,128.2,128.17,0.05950465]
[1769128251426,2.05057055,128.2,128.17,0.05950465]
[1769128251625,4.12969014,128.2,128.17,0.05950465]
[1769128254622,2.05057055,128.2,128.17,0.05950465]
[1769128254828,0.05404761,128.2,128.17,0.05950465]
[1769128256032,0.05404761,128.2,128.17,5.6728418]
[1769128256230,4.08595217,128.22,128.17,5.6728418]
[1769128258326,2.07911959,128.22,128.17,5.6728418]
[1769128258930,2.02324082,128.25,128.17,5.6728418]
[1769128259131,2.02324082,128.25,128.18,5.61333715]
[1769128259533,2.02324082,128.25,128.2,5.66282266]
[1769128263335,4.10236041,128.25,128.2,5.66282266]
[1769128270853,2.02324082,128.25,128.2,5.66282266]
[1769128275649,2.02324082,128.25,128.2,0.04948551]
[1769128283853,2.07785982,128.24,128.2,0.04948551]
[1769128284255,2.09608317,128.23,128.16,5.62280144]
[1769128285348,2.09608317,128.23,128.17,5.62280144]
[1769128285654,2.07785982,128.24,128.18,5.67371117]
[1769128286252,4.17855627,128.24,128.18,5.67371117]
[1769128286654,4.17855627,128.26,128.18,5.67371117]
[1769128286951,4.17855627,128.26,128.18,5.62280144]
[1769128287344,4.17855627,128.26,128.19,5.62280144]
[1769128287745,2.10069645,128.26,128.19,5.62280144]
[1769128287945,2.10069645,128.26,128.21,5.68111028]
[1769128288557,2.07785982,128.27,128.21,5.68111028]
[1769128290057,2.10520436,128.28,128.21,5.68111028]
[1769128290754,2.07785982,128.29,128.23,5.62280144]
[1769128291262,2.07785982,128.29,128.25,0.05457498]
[1769128291559,2.10960931,128.3,128.25,6.05312868]
[1769128297062,0.05417714,128.29,128.25,6.05312868]
[1769128298765,4.25804689,128.29,128.25,0.05457498]
[1769128298968,2.12600993,128.28,128.22,5.9985537]
[1769128299264,4.20386975,128.28,128.22,5.9985537]
[1769128300263,4.20386975,128.28,128.24,0.05616574]
[1769128303258,4.21340079,128.3,128.24,6.05471944]
[1769128309065,2.07785982,128.3,128.24,6.05471944]
[1769128309265,4.2241346,128.32,128.24,6.05471944]
[1769128309466,2.14627478,128.31,128.24,6.05471944]
[1769128309763,2.14627478,128.31,128.24,5.9985537]
[1769128310475,2.07785982,128.3,128.26,0.05823533]
[1769128317282,4.07856156,128.3,128.26,0.05823533]
[1769128325090,2.00070174,128.3,128.26,0.05823533]
[1769128331206,3.84756934,128.32,128.26,5.9089486]
[1769128331704,1.76970952,128.32,128.26,5.9089486]
[1769128334205,1.76970952,128.32,128.27,5.85071327]
[1769128348729,3.84500977,128.32,128.27,5.85071327]
[1769128361142,1.40306411,128.31,128.26,0.05823533]
[1769128362649,1.40306411,128.31,128.26,5.59652815]
[1769128366945,2.07530025,128.32,128.26,5.59652815]
[1769128367341,0.05490447,128.3,128.26,5.59652815]
[1769128368649,1.35378793,128.33,128.26,5.59652815]
[1769128377454,1.28795622,128.31,128.26,5.59652815]
[1769128377852,1.28795622,128.31,128.26,5.53829282]
[1769128378160,1.28795622,128.31,128.27,0.05766314]
[1769128380463,1.28795622,128.31,128.27,5.59595596]
[1769128381761,1.22986114,128.33,128.27,5.59595596]
[1769128382554,0.04926743,128.31,128.27,5.59595596]
[1769128394555,2.12447089,128.31,128.27,5.59595596]
[1769128396767,0.04926743,128.31,128.27,5.59595596]
[1769128403071,2.6352695,128.34,128.27,5.59595596]
[1769128403470,2.6352695,128.34,128.27,5.53829282]
[1769128404272,2.6352695,128.34,128.29,0.05313699]
[1769128407274,0.05108225,128.33,128.29,0.05313699]
[1769128409374,0.05108225,128.33,128.29,5.39190183]
[1769128421482,2.07520346,128.36,128.29,5.39190183]
[1769128421880,2.07520346,128.36,128.29,5.33876484]
[1769128422282,1.10619727,128.35,128.29,5.33876484]
[1769128422784,1.10619727,128.35,128.31,0.05572737]
[1769128433591,2.93172933,128.34,128.29,5.33876484]
[1769128433797,2.9879917,128.34,128.29,5.33876484]
[1769128434999,2.9879917,128.34,128.3,0.05307662]
[1769128436699,0.71630803,128.33,128.3,0.05307662]
[1769128436899,2.13146583,128.34,128.3,0.05307662]
[1769128442498,2.54302688,128.34,128.3,0.05307662]
[1769128450511,0.57630448,128.33,128.25,7.0244]
[1769128450715,3.32386679,128.31,128.25,7.0244]
[1769128451117,3.32386679,128.31,128.24,2.07520346]
[1769128451516,3.28394473,128.29,128.23,7.0252]
[1769128451717,3.33542082,128.29,128.26,0.05301042]
[1769128463326,0.05147609,128.29,128.26,0.05301042]
[1769128463640,2.83918248,128.31,128.26,5.24636621]
[1769128468728,2.83918248,128.31,128.26,0.05301042]
[1769128474141,1.53329076,128.3,128.26,0.05301042]
[1769128474345,0.05603141,128.3,128.26,4.27812177]
[1769128481347,1.35610057,128.3,128.26,4.27812177]
[1769128482746,1.35610057,128.3,128.26,0.05301042]
[1769128483149,3.3270759,128.28,128.22,215.19978141]
[1769128483445,3.3270759,128.28,128.22,4.22511135]
[1769128484135,1.2267812,128.27,128.22,4.22511135]
[1769128484542,1.2267812,128.27,128.2,6.3012584]
[1769128484741,3.30292825,128.26,128.2,4.22511135]
[1769128484942,1.2267812,128.25,128.2,4.22511135]
[1769128485252,3.27905795,128.24,128.18,4.22511135]
[1769128485750,3.27905795,128.24,128.2,0.05400862]
[1769128486342,3.27905795,128.24,128.17,210.68339432]
[1769128486343,1.23661671,128.23,128.17,210.68339432]
[1769128486542,2.07614705,128.22,128.17,210.68339432]
[1769128486747,2.07614705,128.22,128.17,214.90850567]
[1769128487653,2.07614705,128.22,128.18,0.05230329]
[1769128488154,3.20907956,128.22,128.18,0.05230329]
[1769128489453,1.11014016,128.21,128.17,207.88574587]
[1769128490652,0.05259763,128.2,128.17,207.88574587]
[1769128493064,1.02155879,128.23,128.17,212.11085722]
[1769128493254,1.02155879,128.23,128.17,212.16848267]
[1769128494857,0.05647355,128.21,128.17,212.16848267]
[1769128501259,0.05647355,128.21,128.18,4.22511135]
[1769128502158,0.05647355,128.21,128.17,207.94337132]
[1769128502359,0.05647355,128.21,128.17,211.79719461]
[1769128503061,7.08347355,128.21,128.17,211.79719461]
[1769128507063,0.05647355,128.21,128.17,211.79719461]
[1769128511460,8.13999756,128.21,128.17,207.94337132]
[1769128512558,0.05647355,128.21,128.18,4.19476152]
[1769128513769,4.11507032,128.21,128.17,207.94337132]
[1769128514366,4.05859677,128.2,128.12,303.86744705]
[1769128514769,4.05859677,128.2,128.12,305.22520441]
[1769128514969,4.05859677,128.2,128.12,305.22859778]
[1769128515171,4.05859677,128.2,128.15,2.07954042]
[1769128515571,0.05184556,128.19,128.15,2.07954042]
[1769128515871,0.05184556,128.19,128.15,6.27430194]
[1769128518675,0.05184556,128.19,128.16,0.05987209]
[1769128521177,0.05184556,128.19,128.16,4.25463361]
[1769128524269,0.05184556,128.19,128.16,0.05987209]
[1769128528084,0.05184556,128.19,128.16,4.25463361]
[1769128532890,0.05184556,128.19,128.12,3.8502948]
[1769128532891,4.08110646,128.18,128.12,3.8502948]
[1769128533986,11.10960646,128.18,128.12,3.8502948]
[1769128534182,0.0575645,128.16,128.12,3.8502948]
[1769128544096,0.0575645,128.16,128.13,0.05146484]
[1769128547899,4.13867096,128.16,128.1,3.8502948]
[1769128550999,2.07954042,128.15,128.1,3.8502948]
[1769128551193,6.16064688,128.15,128.1,3.8502948]
[1769128551502,4.08110646,128.14,128.08,3.8502948]
[1769128552095,0.0553303,128.12,128.08,3.8502948]
[1769128556909,2.07954042,128.11,128.06,3.8502948]
[1769128557206,6.16064688,128.11,128.06,3.8502948]
[1769128557507,6.16064688,128.11,128.07,0.04950878]
[1769128557803,6.16064688,128.09,128.02,3.8502948]
[1769128558907,0.04980826,128.07,128.02,3.8502948]
[1769128560509,4.13091472,128.07,128.02,3.8502948]
[1769128562209,0.04980826,128.07,128.02,3.8502948]
[1769128563404,6.01232812,128.07,128.02,3.8502948]
[1769128565207,3.68280557,128.13,128.05,3.81302885]
[1769128565907,2.07954042,128.1,128.05,3.81302885]
[1769128566506,0.05781167,128.09,128.05,3.81302885]
[1769128567813,2.07954042,128.08,128.03,3.81302885]
[1769128568615,5.76234599,128.08,128.03,3.81302885]
[1769128569310,0.05232121,128.07,128.03,3.81302885]
[1769128576820,2.07954042,128.11,128.03,3.81302885]
[1769128577020,12.79710764,128.12,128.04,3.81302885]
[1769128577323,2.08240207,128.12,128.04,3.81302885]
[1769128577518,5.76520764,128.16,128.08,3.81302885]
[1769128577926,109.3366,128.18,128.11,3.86935207]
[1769128577927,2.08240207,128.17,128.11,3.86935207]
[1769128579233,0.05747867,128.15,128.11,3.86935207]
[1769128581437,2.08240207,128.19,128.12,3.81302885]
[1769128582434,5.76520764,128.19,128.12,3.81302885]
[1769128582637,0.05154647,128.17,128.12,3.81302885]
[1769128583339,0.05154647,128.17,128.13,0.05551675]
[1769128591545,0.05154647,128.17,128.13,3.68888006]
[1769128593949,2.08240207,128.21,128.14,3.63336331]
[1769128595142,2.08240207,128.21,128.16,0.04925642]
[1769128595352,2.08240207,128.21,128.16,3.68261973]
[1769128596653,3.54152942,128.22,128.16,3.68261973]
[1769128600548,2.08240207,128.23,128.16,3.68261973]
[1769128600755,9.10710207,128.25,128.16,3.68261973]
[1769128601053,12.64863149,128.25,128.16,3.63336331]
[1769128601956,12.64863149,128.25,128.18,3.63336331]
[1769128602251,2.08240207,128.23,128.18,3.63336331]
[1769128602451,2.13628844,128.23,128.18,3.63336331]
[1769128605953,12.70361786,128.23,128.18,3.63336331]
[1769128606753,5.67781786,128.23,128.18,3.63336331]
[1769128612458,3.54152942,128.22,128.16,3.63336331]
[1769128612659,5.62393149,128.21,128.16,3.63336331]
[1769128613159,0.05775129,128.2,128.16,3.63336331]
[1769128623466,2.08240207,128.21,128.16,3.63336331]
[1769128623662,2.08240207,128.23,128.16,3.63336331]
[1769128623965,2.08240207,128.23,128.18,3.83530986]
[1769128625369,3.66739672,128.25,128.18,3.83530986]
[1769128625370,2.08240207,128.25,128.18,3.83530986]
[1769128625570,5.87872297,128.27,128.19,3.64567123]
[1769128626370,2.08240207,128.25,128.19,3.64567123]
[1769128626956,2.08240207,128.25,128.21,0.0494643]
[1769128627470,2.08240207,128.25,128.21,3.69513553]
[1769128628465,0.05922114,128.24,128.21,3.69513553]
[1769128628873,0.05922114,128.24,128.21,3.553e-05]
[1769128630161,0.05922114,128.24,128.21,0.05534425]
[1769128636680,0.05922114,128.24,128.21,0.05530872]
[1769128637069,3.85554204,128.24,128.21,0.05530872]
[1769128637271,5.87872297,128.23,128.17,3.64567123]
[1769128638368,5.87872297,128.23,128.19,0.05457395]
[1769128638573,0.05732123,128.21,128.19,0.05457395]
[1769128639876,3.85364213,128.21,128.15,3.64567123]
[1769128640984,2.07889006,128.2,128.15,3.64567123]
[1769128644388,5.87521096,128.2,128.15,3.64567123]
[1769128648595,2.07889006,128.2,128.15,3.64567123]
[1769128652296,2.07889006,128.2,128.16,0.0511346]
[1769128655497,5.95474454,128.2,128.16,0.0511346]
[1769128681814,3.72737873,128.19,128.16,0.0511346]
[1769128684905,0.05732123,128.21,128.16,3.63893776]
[1769128685105,3.9178828,128.21,128.16,0.0511346]
[1769128688016,3.9178828,128.21,128.16,3.63893776]
[1769128688321,0.05732123,128.21,128.16,3.63893776]
[1769128688523,3.86056157,128.23,128.16,3.63893776]
[1769128688724,3.86056157,128.23,128.17,3.58780316]
[1769128689917,0.05212961,128.21,128.17,3.58780316]
[1769128690625,0.05212961,128.21,128.18,0.05271715]
[1769128695023,3.91269118,128.21,128.18,0.05271715]
[1769128703129,2.07888072,128.23,128.18,0.05271715]
[1769128703130,3.86056157,128.23,128.18,3.64052031]
[1769128703920,3.86056157,128.23,128.18,0.05271715]
[1769128704125,3.86056157,128.22,128.18,0.05271715]
[1769128713043,3.86056157,128.22,128.15,3.58780316]
[1769128713337,3.96167022,128.2,128.15,3.58780316]
[1769128717837,0.05080197,128.21,128.15,10.61750316]
[1769128718044,0.05080197,128.21,128.16,3.86974925]
[1769128720338,3.96167022,128.22,128.17,3.86974925]
[1769128720531,3.96167022,128.22,128.17,3.92444251]
[1769128722250,3.96167022,128.2,128.17,0.05469326]
[1769128722546,3.96167022,128.2,128.15,3.86974925]
[1769128722745,3.96167022,128.2,128.17,0.04977888]
[1769128731747,3.96167022,128.22,128.17,0.04977888]
[1769128732961,3.96167022,128.22,128.17,3.91952813]
[1769128735462,0.05396275,128.21,128.17,3.91952813]
[1769128741768,3.96167022,128.22,128.17,3.91952813]
[1769128742366,6.08562728,128.26,128.18,3.69044441]
[1769128742566,6.08562728,128.26,128.19,2.07888072]
[1769128742768,6.08562728,128.26,128.2,3.69044441]
[1769128743163,6.08562728,128.26,128.21,0.04992362]
[1769128743471,0.05178057,128.24,128.21,0.04992362]
[1769128750676,4.00674656,128.25,128.21,0.04992362]
[1769128752469,0.05521338,128.24,128.21,0.04992362]
[1769128760777,3.7055713,128.27,128.21,3.9150812]
[1769128766684,5.78247635,128.27,128.21,3.9150812]
[1769128767380,3.7055713,128.26,128.21,3.9150812]
[1769128774491,3.7055713,128.26,128.21,0.04992362]
[1769128775093,0.05039537,128.25,128.21,0.04992362]
[1769128776792,3.95753693,128.24,128.18,10.92807768]
[1769128778096,3.95753693,128.24,128.2,0.0588381]
[1769128779588,2.07690505,128.23,128.16,10.92917768]
[1769128779790,3.95753693,128.22,128.16,10.92917768]
[1769128779994,3.95753693,128.22,128.17,3.89997768]
[1769128780794,0.05693999,128.21,128.18,0.05192444]
[1769128800805,4.01447692,128.21,128.18,0.05192444]
[1769128801010,0.05693999,128.21,128.18,0.05192444]
[1769128801706,0.05693999,128.21,128.18,3.74301942]
[1769128801908,6.08877814,128.25,128.18,3.74301942]
[1769128802211,4.01187309,128.25,128.18,3.69109498]
[1769128803111,4.01187309,128.25,128.2,0.05170122]
[1769128804208,4.01187309,128.25,128.2,3.82527578]
[1769128804806,12.92186194,128.27,128.2,3.82527578]
[1769128805008,3.82115689,128.26,128.2,3.82527578]
[1769128806011,3.82115689,128.26,128.2,0.05170122]
[1769128807316,5.89806194,128.25,128.2,0.05170122]
[1769128810118,0.05736061,128.24,128.2,0.05170122]
[1769128810715,3.8785175,128.24,128.2,0.05170122]
[1769128832537,3.8785175,128.24,128.16,7.0291]
[1769128832538,3.85886139,128.23,128.16,7.0291]
[1769128833138,2.07773735,128.22,128.15,305.36177817]
[1769128833343,3.85886139,128.21,128.15,305.36177817]
[1769128833736,3.85886139,128.21,128.17,0.05492232]
[1769128834139,3.85886139,128.19,128.17,0.05492232]
[1769128834340,3.85886139,128.19,128.15,301.56229093]
[1769128835737,3.85886139,128.19,128.16,0.05612163]
[1769128836851,3.91704299,128.19,128.16,0.05612163]
[1769128843157,4.299e-05,128.19,128.16,0.05612163]
[1769128845247,341.52551786,128.31,128.17,12.90592459]
[1769128845248,109.2399,128.29,128.17,12.90592459]
[1769128845447,2.07773735,128.26,128.17,12.90592459]
[1769128845642,2.07773735,128.26,128.19,2.07773735]
[1769128845847,2.07773735,128.28,128.19,12.90482459]
[1769128846456,2.07773735,128.28,128.22,0.05343013]
[1769128846660,0.05872791,128.25,128.22,0.05343013]
[1769128847359,0.60664776,128.25,128.22,0.05343013]
[1769128848456,0.60664776,128.25,128.19,5.87722459]
[1769128849655,0.60664776,128.25,128.21,0.05443991]
[1769128858665,0.60664776,128.25,128.16,109.3431]
[1769128858666,0.60664776,128.25,128.17,5.87722459]
[1769128858858,2.07773735,128.26,128.16,3.79948724]
[1769128858859,0.37992087,128.23,128.16,3.79948724]
[1769128859859,0.04933885,128.21,128.16,3.79948724]
[1769128860463,0.40396857,128.21,128.16,3.79948724]
[1769128860652,0.40396857,128.21,128.15,308.59189093]
[1769128861160,0.40396857,128.21,128.15,312.39137817]
[1769128863267,0.40396857,128.21,128.16,3.68577199]
[1769128863962,0.40396857,128.21,128.15,301.56229093]
[1769128865569,0.40396857,128.21,128.15,305.48653573]
[1769128866171,7.67873477,128.25,128.18,3.9242448]
[1769128866468,0.65383477,128.25,128.2,3.9242448]
[1769128867064,2.07773735,128.27,128.2,3.9242448]
[1769128867264,2.76899383,128.27,128.2,3.9242448]
[1769128867470,2.76899383,128.27,128.22,0.05066224]
[1769128867670,0.69125648,128.26,128.22,0.05066224]
[1769128875677,0.05241624,128.25,128.22,0.05066224]
[1769128894697,0.05241624,128.25,128.22,3.84344031]
[1769128894904,0.4053233,128.28,128.22,3.84344031]
[1769128895300,2.07749342,128.29,128.22,3.84344031]
[1769128895897,2.07749342,128.29,128.23,3.79277807]
[1769128896604,2.07749342,128.29,128.25,0.05587552]
[1769128896605,2.51828712,128.29,128.25,0.05587552]
[1769128900907,0.04967851,128.28,128.25,0.05587552]
[1769128901904,0.04967851,128.28,128.25,3.84865359]
[1769128902305,2.47759657,128.31,128.25,3.84865359]
[1769128903998,2.47759657,128.31,128.26,3.79277807]
[1769128904296,0.40010315,128.31,128.26,3.79277807]
[1769128904494,2.07749342,128.33,128.26,3.79277807]
[1769128904698,2.45428682,128.33,128.26,3.79277807]
[1769128905100,0.05549669,128.31,128.28,0.059299]
[1769128909202,2.13299011,128.31,128.28,0.059299]
[1769128919010,0.27808596,128.3,128.24,3.79277807]
[1769128920309,0.27808596,128.3,128.26,3.84607228]
[1769128922420,0.04981844,128.29,128.26,3.84607228]
[1769128933723,0.04981844,128.29,128.26,0.05329421]
[1769128934029,2.30349787,128.29,128.24,3.71080982]
[1769128935225,2.30349787,128.29,128.25,0.05371077]
[1769128939330,0.14525261,128.28,128.22,3.71080982]
[1769128940830,0.04978258,128.26,128.22,3.71080982]
[1769128943935,0.04978258,128.26,128.22,10.73680982]
[1769128944236,0.04978258,128.26,128.23,3.71080982]
[1769128944535,0.14525261,128.28,128.23,3.76281606]
[1769128946734,0.11177193,128.31,128.24,3.71080982]
[1769128946933,2.18837065,128.3,128.24,3.71080982]
[1769128947325,2.18837065,128.3,128.26,0.05938978]
[1769128947736,0.10720618,128.29,128.26,0.05938978]
[1769128952840,2.1571668,128.28,128.22,3.65088035]
[1769128954144,0.05694652,128.26,128.22,3.65088035]
[1769128956234,0.05694652,128.26,128.22,10.67688035]
[1769128956435,0.05694652,128.26,128.23,3.65088035]
[1769128981580,0.08056808,128.28,128.23,3.65088035]
[1769128983679,2.07659872,128.29,128.23,3.65088035]
[1769128994586,0.057525,128.27,128.25,0.05527191]
[1769128995296,0.057525,128.27,128.23,3.65088035]
[1769129005998,0.057525,128.27,128.22,3.63489444]
[1769129006198,2.13412372,128.27,128.22,3.63489444]
[1769129006603,2.13412372,128.27,128.23,0.05687095]
[1769129006906,2.13503059,128.27,128.23,0.05687095]
[1769129008097,0.057525,128.27,128.23,0.05687095]
[1769129008302,2.13503059,128.27,128.23,0.05687095]
[1769129008603,0.057525,128.27,128.23,0.05687095]
[1769129008802,2.13503059,128.27,128.23,0.05687095]
[1769129009307,0.057525,128.27,128.23,0.05687095]
[1769129009499,2.13503059,128.27,128.23,0.05687095]
[1769129009902,0.057525,128.27,128.23,0.05687095]
[1769129010104,2.13503059,128.27,128.23,0.05687095]
[1769129010603,0.057525,128.27,128.23,0.05687095]
[1769129010907,2.13503059,128.27,128.23,0.05687095]
[1769129011803,0.057525,128.27,128.23,0.05687095]
[1769129012102,2.13503059,128.27,128.23,0.05687095]
[1769129012403,0.057525,128.27,128.23,0.05687095]
[1769129012605,2.13503059,128.27,128.23,0.05687095]
[1769129013004,0.057525,128.27,128.23,0.05687095]
[1769129013204,2.13503059,128.27,128.23,0.05687095]
[1769129013705,0.057525,128.27,128.23,0.05687095]
[1769129013904,2.13503059,128.27,128.23,0.05687095]
[1769129014402,0.057525,128.27,128.23,0.05687095]
[1769129014597,0.057525,128.27,128.23,3.69176539]
[1769129015508,7.081125,128.27,128.23,3.69176539]
[1769129024119,0.057525,128.27,128.23,3.69176539]
[1769129033421,109.2224,128.31,128.23,3.69176539]
[1769129033422,7.0216,128.31,128.23,3.69176539]
[1769129033622,9.09910559,128.31,128.23,3.69176539]
[1769129033824,9.09910559,128.31,128.23,3.63489444]
[1769129034826,9.09910559,128.31,128.26,0.05752089]
[1769129058551,2.07750559,128.29,128.26,0.05752089]
[1769129059155,2.07750559,128.29,128.26,3.66365283]
[1769129059355,9.09910559,128.31,128.26,3.66365283]
[1769129068968,9.0976242,128.31,128.26,3.66365283]
[1769129077273,0.04950353,128.3,128.26,3.66365283]
[1769129080071,0.04950353,128.3,128.26,0.05752089]
[1769129080286,2.0760242,128.29,128.22,3.60613194]
[1769129080573,2.0760242,128.27,128.22,3.60613194]
[1769129081780,2.0760242,128.25,128.2,3.60613194]
[1769129084279,0.05840123,128.24,128.21,0.05661639]
[1769129085081,2.0760242,128.25,128.21,3.66274833]
[1769129085875,7.022,128.3,128.21,3.66274833]
[1769129086078,2.0760242,128.27,128.21,3.66274833]
[1769129086267,2.0760242,128.27,128.21,3.60613194]
[1769129086465,2.0760242,128.27,128.23,0.05445754]
[1769129088378,2.0760242,128.25,128.2,7.0271]
[1769129088581,2.0760242,128.25,128.21,3.60613194]
[1769129088876,0.05397882,128.26,128.21,3.60613194]
[1769129089884,0.05397882,128.26,128.22,0.05487203]
[1769129102992,2.0760242,128.25,128.22,0.05487203]
[1769129108591,2.0760242,128.25,128.19,3.60613194]
[1769129108793,2.0760242,128.23,128.19,3.60613194]
[1769129108992,2.0760242,128.23,128.18,300.75192004]